bitfinex-derivatives/quotes_SOLF0:USTF0_20241231
["timestamp","ask_amount","ask_price","bid_price","bid_amount"]
[1735668204522,2.5494,196.41,196.34,3.64]
[1735668204722,2.5494,196.41,196.37,2.5498]
[1735668205117,2.5499,196.37,196.34,3.64]
[1735668205420,19.9288591,196.44,196.27,72.9088591]
[1735668205611,2.5504,196.33,196.31,3.64]
[1735668205812,3.64,196.43,196.31,3.64]
[1735668206019,2.55,196.37,196.31,6.1906]
[1735668206213,2.55,196.37,196.31,3.64]
[1735668206412,3.0725,196.45,196.36,2.55]
[1735668206618,1.27550113,196.44,196.36,2.55]
[1735668206828,1.27550113,196.43,196.37,3.64]
[1735668207129,3.64,196.49,196.39,2.5495]
[1735668207419,2.5492,196.42,196.37,6.1898]
[1735668207615,5.2298,196.49,196.37,3.64]
[1735668207812,1.27530484,196.45,196.37,3.64]
[1735668208022,2.5492,196.42,196.37,6.1898]
[1735668208222,5.2298,196.49,196.37,6.1898]
[1735668208421,1.27525928,196.45,196.37,3.64]
[1735668208624,1.27525928,196.44,196.37,3.64]
[1735668208824,1.27525928,196.43,196.37,3.64]
[1735668209024,1.27525928,196.45,196.37,3.64]
[1735668209326,1.27525928,196.44,196.37,3.64]
[1735668209519,1.27525928,196.43,196.35,1.5078]
[1735668209719,1.27525928,196.42,196.34,3.64]
[1735668209925,1.27525928,196.41,196.34,3.64]
[1735668210123,2.55,196.36,196.34,3.64]
[1735668211226,2.5499,196.37,196.34,3.64]
[1735668211424,21.4456591,196.46,196.34,3.64]
[1735668211625,1.27540205,196.45,196.34,3.64]
[1735668211826,1.27540205,196.44,196.34,6.1901]
[1735668212021,1.27543274,196.43,196.28,4.5445]
[1735668212329,24.82429184,196.42,196.28,8.1645]
[1735668212533,23.5488591,196.42,196.28,8.1645]
[1735668212724,1.27581588,196.41,196.28,8.1645]
[1735668212921,1.27581588,196.4,196.28,8.1645]
[1735668213122,1.27581588,196.39,196.28,3.62]
[1735668213324,1.4782,196.4,196.28,3.62]
[1735668213325,21.20467498,196.38,196.28,3.62]
[1735668213525,1.27581588,196.37,196.28,3.62]
[1735668213725,1.27581588,196.36,196.24,3.62]
[1735668213923,1.27581588,196.35,196.24,3.62]
[1735668214220,1.27581588,196.35,196.23,6.98450945]
[1735668214221,1.27608779,196.34,196.23,3.62]
[1735668214527,1.27608779,196.33,196.23,3.62]
[1735668214725,1.27608779,196.32,196.23,3.62]
[1735668214925,1.27608779,196.31,196.23,3.62]
[1735668215126,2.5513,196.26,196.23,6.1716]
[1735668215329,3.62,196.36,196.23,3.62]
[1735668215524,1.27611405,196.35,196.23,3.62]
[1735668215731,2.5515,196.25,196.22,3.62]
[1735668216132,1.4659,196.34,196.22,3.62]
[1735668216425,1.27618301,196.33,196.23,19.9288591]
[1735668216628,1.27618301,196.32,196.23,19.9288591]
[1735668216930,1.4659,196.34,196.23,19.9288591]
[1735668217133,1.27581958,196.33,196.23,19.9288591]
[1735668217327,1.4659,196.34,196.19,19.9288591]
[1735668217524,1.2758443,196.33,196.18,3.1466]
[1735668217727,2.5518,196.22,196.18,9.3188]
[1735668217928,3.62,196.33,196.18,6.7666]
[1735668218123,1.4565,196.31,196.18,6.7666]
[1735668218327,2.552,196.21,196.19,3.62]
[1735668218527,1.5296,196.3,196.19,3.62]
[1735668218731,1.27634063,196.29,196.19,3.62]
[1735668218923,1.27634063,196.28,196.19,3.62]
[1735668219127,1.27634063,196.27,196.18,3.1466]
[1735668219427,1.27634063,196.26,196.18,6.7666]
[1735668219631,1.5296,196.3,196.2,2.552]
[1735668219831,1.27634697,196.29,196.18,6.7666]
[1735668220131,1.5296,196.3,196.23,2.5516]
[1735668220432,1.2761429,196.29,196.19,19.9288591]
[1735668220729,2.5515,196.25,196.2,2.5519]
[1735668220929,1.5296,196.3,196.19,19.9288591]
[1735668221125,1.27622013,196.29,196.19,19.9288591]
[1735668221327,1.5296,196.3,196.19,19.9288591]
[1735668221531,2.5517,196.24,196.2,2.552]
[1735668222224,2.5514,196.26,196.22,2.5518]
[1735668223319,2.5515,196.25,196.21,2.5519]
[1735668225429,1.4565,196.31,196.19,12.48695343]
[1735668225628,13.76318415,196.3,196.18,1.5959]
[1735668225830,2.77073072,196.29,196.18,1.5959]
[1735668226030,1.27623072,196.28,196.18,1.5959]
[1735668226331,2.5518,196.22,196.18,4.1481]
[1735668226531,1.4945,196.29,196.19,12.48695343]
[1735668226730,2.5515,196.25,196.21,2.5519]
[1735668227030,1.4945,196.29,196.19,12.48695343]
[1735668227933,1.4945,196.29,196.21,2.5519]
[1735668228230,2.5512,196.27,196.21,2.5519]
[1735668228534,1.4945,196.29,196.21,2.5519]
[1735668228931,2.5512,196.27,196.21,2.5519]
[1735668229129,1.4565,196.31,196.19,12.48695343]
[1735668229330,1.4565,196.31,196.22,12.48695343]
[1735668229533,2.5513,196.27,196.22,12.48695343]
[1735668230045,2.5513,196.27,196.23,2.5517]
[1735668230833,2.5513,196.27,196.24,2.5515]
[1735668231733,2.5508,196.3,196.25,12.48695343]
[1735668232933,2.5508,196.3,196.26,2.5512]
[1735668233729,2.5508,196.3,196.25,12.48695343]
[1735668233942,2.5508,196.3,196.27,2.5511]
[1735668234438,3.62,196.4,196.27,12.48695343]
[1735668234439,12.48695343,196.4,196.27,12.48695343]
[1735668234638,1.27572025,196.39,196.28,1.4431]
[1735668234838,1.27572025,196.38,196.29,3.62]
[1735668235145,1.27572025,196.37,196.34,2.5502]
[1735668235346,1.5482,196.44,196.3,12.48695343]
[1735668235536,1.27542279,196.43,196.33,12.48695343]
[1735668235737,2.5495,196.4,196.36,2.55]
[1735668236039,2.5495,196.4,196.36,3.62]
[1735668237237,1.5482,196.44,196.36,3.62]
[1735668237541,1.27532486,196.43,196.36,3.62]
[1735668237742,1.27532486,196.42,196.36,3.62]
[1735668237945,2.5497,196.38,196.36,3.62]
[1735668238141,1.5482,196.44,196.3,12.48695343]
[1735668238142,12.48695343,196.43,196.3,12.48695343]
[1735668238349,1.27548145,196.42,196.31,3.62]
[1735668238642,2.5502,196.35,196.31,6.1706]
[1735668239543,12.48695343,196.43,196.31,6.1706]
[1735668239544,2.5502,196.34,196.31,6.1706]
[1735668240142,12.48695343,196.43,196.31,6.1706]
[1735668240445,2.5501,196.35,196.31,6.1706]
[1735668240839,2.5501,196.35,196.32,2.5505]
[1735668241042,2.5495,196.4,196.33,12.48695343]
[1735668241344,1.27546772,196.39,196.33,12.48695343]
[1735668241546,12.48695343,196.43,196.33,12.48695343]
[1735668241746,1.27551989,196.42,196.33,12.48695343]
[1735668242346,1.27551989,196.41,196.33,12.48695343]
[1735668242546,1.27551989,196.4,196.33,12.48695343]
[1735668242744,1.27551989,196.39,196.37,2.5498]
[1735668242947,2.5495,196.4,196.37,2.5498]
[1735668243147,2.549,196.44,196.38,2.5497]
[1735668243451,12.48695343,196.49,196.37,3.62]
[1735668243647,12.48695343,196.49,196.37,6.7301]
[1735668243845,12.48695343,196.46,196.33,16.10695343]
[1735668244258,12.48695343,196.5,196.36,12.48695343]
[1735668244444,12.48695343,196.5,196.37,1.591]
[1735668244647,1.4727,196.51,196.39,12.48695343]
[1735668244848,2.5485,196.48,196.44,2.5488]
[1735668245042,1.4727,196.51,196.4,3.62]
[1735668245450,2.5488,196.45,196.41,2.5493]
[1735668245851,1.4727,196.51,196.4,3.62]
[1735668246248,1.5262,196.52,196.4,3.62]
[1735668246452,1.5262,196.52,196.41,1.4499]
[1735668247254,2.5485,196.48,196.43,2.5491]
[1735668247755,1.5262,196.52,196.43,2.5491]
[1735668248154,2.5487,196.47,196.43,2.5491]
[1735668248359,1.5262,196.52,196.41,3.9991]
[1735668249153,1.5262,196.52,196.42,2.5492]
[1735668249358,1.5262,196.52,196.41,1.4499]
[1735668249557,2.5485,196.48,196.42,12.48695343]
[1735668250054,2.5485,196.48,196.44,2.5489]
[1735668250458,2.5483,196.5,196.42,12.48695343]
[1735668250760,2.5483,196.5,196.45,12.48695343]
[1735668251058,2.5483,196.5,196.46,3.62]
[1735668251459,2.5483,196.5,196.47,2.5485]
[1735668252053,15.50895343,196.56,196.46,3.62]
[1735668252255,15.50895343,196.56,196.42,12.48695343]
[1735668252456,12.48695343,196.53,196.41,2.9767]
[1735668252668,2.5492,196.43,196.42,3.62]
[1735668253273,12.48695343,196.5,196.42,3.62]
[1735668253457,2.549,196.44,196.42,3.62]
[1735668254962,12.48695343,196.53,196.43,2.549]
[1735668255162,12.48695343,196.53,196.43,6.169]
[1735668255363,12.48695343,196.53,196.43,3.62]
[1735668256160,2.5488,196.46,196.43,3.62]
[1735668256563,12.48695343,196.53,196.43,3.62]
[1735668256866,2.5484,196.49,196.43,3.62]
[1735668257062,2.5484,196.49,196.43,5.0875]
[1735668257258,2.5481,196.51,196.45,12.48695343]
[1735668257964,2.5481,196.51,196.47,2.5485]
[1735668258165,2.5484,196.49,196.45,12.48695343]
[1735668258365,2.5484,196.49,196.45,15.03565343]
[1735668258663,2.5484,196.49,196.45,12.48695343]
[1735668259170,3.022,196.56,196.45,12.48695343]
[1735668259171,2.5482,196.5,196.46,2.5486]
[1735668259775,3.022,196.56,196.46,2.5486]
[1735668259962,3.022,196.56,196.47,2.5486]
[1735668260962,3.022,196.56,196.43,5.0875]
[1735668261162,12.48695343,196.54,196.41,1.4499]
[1735668261367,12.48695343,196.54,196.42,3.62]
[1735668262367,2.5489,196.45,196.42,3.62]
[1735668262668,16.10695343,196.54,196.41,5.0699]
[1735668263367,12.48695343,196.51,196.41,5.0699]
[1735668263561,12.48695343,196.51,196.38,1.5406]
[1735668263770,1.5141,196.5,196.4,3.62]
[1735668263959,2.5494,196.41,196.4,3.62]
[1735668264365,12.48695343,196.45,196.33,13.94705343]
[1735668264567,2.55,196.37,196.34,3.62]
[1735668264770,12.48695343,196.42,196.34,3.62]
[1735668264972,1.5677,196.41,196.34,3.62]
[1735668265172,12.48695343,196.39,196.27,1.5561]
[1735668265372,12.48695343,196.39,196.3,3.62]
[1735668266072,2.5505,196.33,196.3,3.62]
[1735668266372,12.48695343,196.39,196.29,3.62]
[1735668267172,12.48695343,196.39,196.27,1.5561]
[1735668267367,12.48695343,196.36,196.23,12.48695343]
[1735668267671,2.5514,196.26,196.24,3.62]
[1735668267863,2.5514,196.26,196.23,3.62]
[1735668269171,2.5511,196.28,196.23,3.62]
[1735668269379,2.5511,196.28,196.23,16.10695343]
[1735668269667,12.48695343,196.33,196.23,16.10695343]
[1735668269867,1.5709,196.35,196.24,2.5515]
[1735668270064,1.5709,196.35,196.23,16.10695343]
[1735668270272,2.5506,196.32,196.27,2.551]
[1735668270464,1.4601,196.38,196.26,12.48695343]
[1735668271472,1.4601,196.38,196.28,2.551]
[1735668271473,2.5502,196.35,196.28,2.551]
[1735668271676,3.62,196.43,196.2,13.92425343]
[1735668271677,12.48695343,196.42,196.29,16.10695343]
[1735668271973,13.98155343,196.45,196.32,12.48695343]
[1735668273075,2.5495,196.4,196.32,12.48695343]
[1735668273871,2.5496,196.39,196.32,12.48695343]
[1735668274071,13.98155343,196.45,196.32,12.48695343]
[1735668274274,2.5493,196.41,196.36,2.55]
[1735668274575,2.5493,196.41,196.37,3.62]
[1735668275376,1.4946,196.45,196.37,3.62]
[1735668275675,2.5495,196.4,196.37,3.62]
[1735668276877,1.4946,196.45,196.3,3.0614]
[1735668277079,19.9505643,196.43,196.31,3.62]
[1735668279279,2.5495,196.4,196.31,3.62]
[1735668279472,19.9505643,196.43,196.31,3.62]
[1735668279677,19.9505643,196.4,196.28,3.62]
[1735668280179,3.62,196.41,196.28,3.62]
[1735668280584,2.5504,196.33,196.29,2.5509]
[1735668281377,2.5504,196.33,196.3,2.5508]
[1735668282073,2.5504,196.33,196.28,3.62]
[1735668282074,3.62,196.41,196.28,3.62]
[1735668282382,19.9505643,196.43,196.28,3.62]
[1735668283479,2.5506,196.32,196.28,3.62]
[1735668284071,23.5705643,196.43,196.28,3.62]
[1735668284281,3.62,196.43,196.28,3.62]
[1735668284975,3.62,196.43,196.3,2.5507]
[1735668285178,3.62,196.43,196.3,19.9505643]
[1735668285380,2.5494,196.41,196.35,2.5501]
[1735668285579,1.4946,196.45,196.35,3.62]
[1735668285975,2.5491,196.43,196.39,2.5495]
[1735668286372,2.9946,196.46,196.39,2.5495]
[1735668286576,2.9946,196.46,196.35,3.62]
[1735668287485,2.5494,196.41,196.37,2.5497]
[1735668287883,2.5494,196.41,196.35,3.62]
[1735668288184,2.5492,196.42,196.38,2.5497]
[1735668288786,2.9946,196.46,196.35,3.62]
[1735668288981,2.9946,196.46,196.37,2.5498]
[1735668289378,2.9946,196.46,196.35,3.62]
[1735668289588,2.9946,196.46,196.34,3.62]
[1735668290288,2.5501,196.35,196.34,3.62]
[1735668290489,19.9505643,196.44,196.3,3.62]
[1735668290979,2.5502,196.35,196.31,2.5506]
[1735668291391,19.9505643,196.44,196.3,3.62]
[1735668291687,2.55,196.37,196.33,2.5503]
[1735668292685,6.6146,196.46,196.35,2.5501]
[1735668292891,6.6146,196.46,196.3,3.62]
[1735668293493,2.5498,196.38,196.3,3.62]
[1735668293992,2.9946,196.46,196.31,19.9505643]
[1735668294186,2.5491,196.43,196.31,19.9505643]
[1735668294495,2.9946,196.46,196.36,12.46544301]
[1735668294687,2.5491,196.44,196.4,2.5494]
[1735668294893,2.5491,196.44,196.37,3.62]
[1735668295092,2.5491,196.44,196.41,2.5493]
[1735668295294,2.5489,196.45,196.41,2.5493]
[1735668295688,12.46544301,196.5,196.4,2.5494]
[1735668296095,12.46544301,196.5,196.37,3.62]
[1735668296486,2.5492,196.43,196.37,3.62]
[1735668296894,12.46544301,196.5,196.41,2.5493]
[1735668297595,2.549,196.44,196.41,2.5493]
[1735668298195,2.5487,196.47,196.4,2.5495]
[1735668298495,12.46544301,196.5,196.4,2.5495]
[1735668298699,4.4776,196.51,196.39,12.46544301]
[1735668298994,4.4776,196.51,196.42,2.5492]
[1735668299194,4.4776,196.51,196.43,3.62]
[1735668299396,2.5489,196.44,196.43,3.62]
[1735668301300,2.5489,196.44,196.38,2.9379]
[1735668301598,12.46544301,196.47,196.34,12.46544301]
[1735668301796,12.46544301,196.44,196.31,20.88745246]
[1735668302098,2.5501,196.36,196.33,2.5503]
[1735668302295,1.5856,196.43,196.31,8.42200945]
[1735668302500,12.46544301,196.41,196.3,3.6]
[1735668303001,1.5261,196.42,196.31,12.46544301]
[1735668303293,2.5497,196.38,196.35,2.5501]
[1735668303494,2.5497,196.38,196.35,3.6]
[1735668303706,1.5261,196.42,196.35,3.6]
[1735668304093,17.55274301,196.47,196.35,3.6]
[1735668304299,13.95274301,196.47,196.35,3.6]
[1735668304794,2.5493,196.41,196.35,3.6]
[1735668305399,1.4873,196.47,196.37,12.46544301]
[1735668305593,3.0521,196.49,196.37,12.46544301]
[1735668306193,3.0521,196.49,196.38,3.6]
[1735668306393,2.5489,196.45,196.38,3.6]
[1735668306892,2.549,196.44,196.4,2.5494]
[1735668307100,3.0521,196.49,196.38,3.6]
[1735668307396,3.0521,196.49,196.36,1.575]
[1735668307592,3.0521,196.49,196.37,3.6]
[1735668309592,2.5497,196.39,196.37,3.6]
[1735668310392,6.6521,196.49,196.37,3.6]
[1735668311295,2.5499,196.38,196.34,2.5502]
[1735668311598,19.94450159,196.48,196.35,3.6]
[1735668311800,13.85422147,196.47,196.35,3.6]
[1735668312099,2.5499,196.37,196.35,3.6]
[1735668313497,2.55,196.36,196.35,3.6]
[1735668313698,3.6,196.43,196.31,3.6]
[1735668313892,7.42649618,196.43,196.3,3.6]
[1735668314092,22.55296665,196.43,196.3,3.6]
[1735668314294,22.55296665,196.43,196.25,30.89483781]
[1735668314295,3.82649618,196.42,196.25,2.9568]
[1735668314597,2.984,196.41,196.26,3.6]
[1735668314799,2.5507,196.31,196.27,2.5511]
[1735668314995,2.984,196.41,196.26,3.6]
[1735668315696,2.984,196.41,196.25,2.9568]
[1735668315895,19.94450159,196.4,196.26,3.6]
[1735668316094,2.5507,196.31,196.27,2.5511]
[1735668316602,10.02817047,196.39,196.26,3.6]
[1735668316792,13.8559922,196.39,196.26,3.6]
[1735668317199,2.5506,196.32,196.28,2.551]
[1735668317600,2.984,196.41,196.27,19.94450159]
[1735668317796,2.984,196.41,196.29,2.5509]
[1735668318203,2.984,196.41,196.27,19.94450159]
[1735668318404,22.92850159,196.41,196.26,3.6]
[1735668318902,13.86931346,196.4,196.26,3.6]
[1735668319095,10.04158751,196.4,196.26,6.1512]
[1735668319299,2.551,196.28,196.26,3.6]
[1735668319504,19.94450159,196.38,196.22,2.5517]
[1735668319704,10.04158751,196.37,196.23,3.6]
[1735668319906,2.5514,196.26,196.23,3.6]
[1735668320303,1.4863,196.36,196.23,3.6]
[1735668320505,2.5511,196.28,196.23,3.6]
[1735668321207,2.5512,196.27,196.23,3.6]
[1735668321505,1.4863,196.36,196.23,3.6]
[1735668321695,2.5505,196.33,196.25,2.5513]
[1735668321898,1.4863,196.36,196.23,3.6]
[1735668322301,2.5506,196.32,196.28,2.551]
[1735668322496,1.4863,196.36,196.28,2.551]
[1735668322702,1.4863,196.36,196.24,19.94450159]
[1735668322902,2.5508,196.3,196.26,2.5513]
[1735668323711,1.4863,196.36,196.23,3.6]
[1735668324207,2.5505,196.33,196.23,6.1517]
[1735668324409,1.4863,196.36,196.23,3.6]
[1735668324597,19.94450159,196.34,196.19,3.1535]
[1735668324803,6.609,196.33,196.23,3.88]
[1735668325310,2.5515,196.24,196.23,3.88]
[1735668329710,3.009,196.33,196.23,6.4317]
[1735668330310,3.009,196.33,196.23,3.88]
[1735668331010,2.5512,196.27,196.24,3.6]
[1735668331214,3.009,196.33,196.24,3.6]
[1735668331412,1.4863,196.36,196.24,3.6]
[1735668331615,1.4863,196.36,196.24,23.54450159]
[1735668331814,2.5506,196.32,196.24,23.54450159]
[1735668332116,1.4863,196.36,196.27,2.5511]
[1735668332315,3.6,196.4,196.27,2.5511]
[1735668332712,2.5508,196.31,196.27,2.5511]
[1735668333215,2.5509,196.29,196.26,2.5513]
[1735668333408,2.5509,196.29,196.24,23.54450159]
[1735668333613,19.94450159,196.37,196.24,3.6]
[1735668333817,2.5512,196.27,196.24,3.6]
[1735668334120,5.0993,196.39,196.24,3.6]
[1735668334313,2.5508,196.31,196.26,2.5512]
[1735668334517,5.0993,196.39,196.27,3.6]
[1735668335020,2.5509,196.29,196.27,3.6]
[1735668336018,19.94450159,196.4,196.27,3.6]
[1735668336919,2.5505,196.32,196.29,2.5508]
[1735668338616,1.5847,196.42,196.31,12.47716515]
[1735668338921,15.33,196.55,196.34,12.47716515]
[1735668338922,1.5456,196.43,196.34,12.47716515]
[1735668339121,2.5488,196.45,196.37,2.5498]
[1735668339420,12.47716515,196.49,196.37,12.47716515]
[1735668339623,4.5277,196.5,196.35,5.061]
[1735668339814,2.5488,196.45,196.4,12.47716515]
[1735668340018,2.5488,196.45,196.41,3.6]
[1735668340919,4.5277,196.5,196.41,3.6]
[1735668341123,2.5487,196.46,196.41,6.1492]
[1735668341325,4.5277,196.5,196.41,6.1492]
[1735668341718,2.5489,196.45,196.41,6.1492]
[1735668341917,4.5277,196.5,196.41,3.6]
[1735668342418,2.5491,196.43,196.41,3.6]
[1735668343622,4.5277,196.5,196.41,3.6]
[1735668343824,2.5492,196.42,196.41,3.6]
[1735668346929,2.5493,196.41,196.4,3.06]
[1735668347123,24.46814151,196.5,196.4,3.06]
[1735668348127,2.5493,196.42,196.4,3.06]
[1735668348725,24.46814151,196.5,196.4,3.06]
[1735668348934,2.5493,196.41,196.4,3.06]
[1735668349427,24.46814151,196.5,196.4,3.06]
[1735668350025,2.5493,196.42,196.4,3.06]
[1735668350927,24.46814151,196.5,196.4,5.6094]
[1735668350928,2.5489,196.45,196.4,5.6094]
[1735668351126,2.5489,196.45,196.41,6.14]
[1735668351433,4.5277,196.5,196.41,6.14]
[1735668351630,4.5277,196.5,196.42,4.22]
[1735668351832,4.5277,196.5,196.43,2.549]
[1735668352128,4.5277,196.5,196.42,4.22]
[1735668352328,2.5491,196.43,196.42,4.22]
[1735668352924,4.5277,196.5,196.42,4.22]
[1735668353533,2.5488,196.46,196.42,6.7691]
[1735668354124,2.5489,196.45,196.42,6.7691]
[1735668355029,2.5489,196.45,196.42,4.22]
[1735668355220,2.5491,196.43,196.42,4.22]
[1735668355921,2.5491,196.43,196.42,8.09]
[1735668356329,2.5491,196.43,196.42,4.49]
[1735668361338,4.5277,196.5,196.42,4.49]
[1735668361529,2.549,196.44,196.42,4.49]
[1735668361730,4.5277,196.5,196.42,7.0391]
[1735668361929,2.5485,196.48,196.42,4.49]
[1735668362539,2.5486,196.47,196.42,4.49]
[1735668363237,2.5488,196.46,196.42,7.0391]
[1735668363435,12.45976574,196.54,196.42,7.0391]
[1735668363633,12.45976574,196.54,196.42,4.49]
[1735668364234,12.45976574,196.54,196.43,3.6]
[1735668364536,2.5489,196.44,196.43,3.6]
[1735668365735,2.5488,196.46,196.43,3.6]
[1735668366140,4.4903,196.56,196.44,12.45976574]
[1735668366338,4.4903,196.56,196.44,17.69976574]
[1735668366844,1.4788,196.56,196.47,12.45976574]
[1735668368645,1.4788,196.56,196.47,15.00826574]
[1735668368844,1.4788,196.56,196.48,3.05]
[1735668369840,2.5483,196.49,196.48,3.05]
[1735668370044,1.4788,196.56,196.48,3.05]
[1735668370346,12.45976574,196.6,196.48,15.50976574]
[1735668370547,3.81504529,196.62,196.48,15.50976574]
[1735668370741,3.81504529,196.62,196.49,3.1155]
[1735668371044,2.5476,196.55,196.5,2.5481]
[1735668371342,3.81504529,196.62,196.51,12.45976574]
[1735668371752,2.5472,196.58,196.51,12.45976574]
[1735668372048,2.5472,196.58,196.54,12.45976574]
[1735668372250,2.5472,196.58,196.55,3.6]
[1735668372645,1.4738,196.67,196.55,23.5107324]
[1735668372946,31.26762976,196.71,196.59,2.547]
[1735668373143,2.5463,196.65,196.58,19.9107324]
[1735668373548,2.5463,196.65,196.59,3.0417]
[1735668373948,2.5461,196.66,196.59,4.4849]
[1735668374348,2.5461,196.66,196.61,22.4573324]
[1735668374552,2.5461,196.66,196.62,3.6]
[1735668374850,2.5463,196.65,196.62,3.6]
[1735668375051,1.5442,196.73,196.62,3.6]
[1735668375445,2.5456,196.7,196.62,3.6]
[1735668375652,1.5442,196.73,196.62,6.1466]
[1735668376147,2.5459,196.68,196.63,2.5465]
[1735668376351,1.5442,196.73,196.63,2.5465]
[1735668376552,1.5442,196.73,196.62,3.6]
[1735668377561,2.5456,196.7,196.62,3.6]
[1735668377754,1.5442,196.73,196.62,3.6]
[1735668378048,21.4549324,196.73,196.59,3.0417]
[1735668378254,19.9107324,196.7,196.55,19.9107324]
[1735668378555,19.9107324,196.7,196.56,3.6]
[1735668378745,2.5461,196.66,196.57,2.5472]
[1735668378946,19.9107324,196.7,196.57,2.5472]
[1735668379151,19.9107324,196.7,196.56,4.22]
[1735668379152,19.9107324,196.64,196.56,0.62]
[1735668379449,2.5473,196.57,196.56,0.62]
[1735668379953,2.5473,196.57,196.47,1.5645]
[1735668379954,19.9107324,196.58,196.48,6.65]
[1735668380254,3.6,196.57,196.48,3.05]
[1735668380554,2.5483,196.49,196.48,3.05]
[1735668383158,2.5483,196.49,196.48,6.92]
[1735668385958,2.5481,196.51,196.48,6.92]
[1735668386461,9.99369782,196.59,196.49,3.6]
[1735668386653,2.5477,196.54,196.49,3.6]
[1735668387160,3.6,196.62,196.49,3.6]
[1735668388163,2.5476,196.55,196.49,6.1482]
[1735668388357,3.6,196.62,196.49,6.1482]
[1735668389356,19.9107324,196.59,196.48,6.92]
[1735668390052,3.6,196.58,196.48,6.92]
[1735668390453,2.5483,196.49,196.48,6.92]
[1735668391066,23.4907324,196.59,196.48,6.92]
[1735668391367,23.4907324,196.59,196.48,10.5]
[1735668391566,2.548,196.52,196.48,10.5]
[1735668391763,23.4907324,196.59,196.48,10.5]
[1735668392862,2.5483,196.49,196.48,10.5]
[1735668393367,2.5483,196.49,196.48,6.92]
[1735668394459,2.5493,196.41,196.4,3.58]
[1735668395057,2.5486,196.47,196.36,7.0399]
[1735668395361,19.9107324,196.51,196.38,3.58]
[1735668396166,2.5493,196.42,196.38,6.1297]
[1735668398168,23.4907324,196.51,196.38,3.58]
[1735668398362,2.5494,196.41,196.38,3.58]
[1735668398559,23.4907324,196.51,196.37,8.88]
[1735668398763,2.5497,196.38,196.37,8.88]
[1735668403067,2.5497,196.38,196.37,3.43330955]
[1735668403274,23.4907324,196.39,196.27,6.5778]
[1735668403575,23.4907324,196.39,196.27,2.9978]
[1735668403870,2.5501,196.36,196.27,2.9978]
[1735668404075,23.4907324,196.39,196.27,2.9978]
[1735668404471,23.4907324,196.39,196.28,2.73]
[1735668404976,2.5509,196.29,196.28,2.73]
[1735668406071,23.4907324,196.33,196.19,3.58]
[1735668407170,2.5517,196.23,196.19,3.58]
[1735668407476,23.4907324,196.33,196.19,3.58]
[1735668408072,2.5515,196.25,196.2,2.5521]
[1735668408267,23.4907324,196.33,196.19,3.58]
[1735668408268,19.9107324,196.33,196.19,3.58]
[1735668408778,19.9107324,196.33,196.2,2.5519]
[1735668409878,19.9107324,196.33,196.19,6.1321]
[1735668410480,2.5518,196.22,196.19,3.58]
[1735668410681,3.58,196.31,196.19,3.58]
[1735668411179,19.9107324,196.3,196.19,3.58]
[1735668411380,21.4433324,196.3,196.19,3.58]
[1735668411880,2.5521,196.2,196.19,3.58]
[1735668412481,1.5326,196.3,196.19,3.58]
[1735668412879,2.5512,196.27,196.2,2.552]
[1735668413074,1.5326,196.3,196.19,3.58]
[1735668413380,19.9107324,196.37,196.21,19.9107324]
[1735668413577,5.1074,196.39,196.26,2.5512]
[1735668413776,5.1074,196.39,196.26,6.1512]
[1735668413978,1.5074,196.39,196.26,6.1512]